[Event "GER-ch Youth U12M 2018"]
[Site "Willingen"]
[Date "2018.05.23"]
[Round "6"]
[White "Tham, Nam"]
[Black "Farokhi, Keyvan"]
[Result "1/2-1/2"]
[ECO "C54"]
[WhiteElo "1866"]
[BlackElo "1844"]
[Annotator "NA RC"]
[PlyCount "86"]
[EventDate "2018.05.19"]
[EventType "swiss"]
[EventCountry "GER"]
[SourceTitle "playchess.com"]
[Source "ChessBase"]
[SourceQuality "1"]
[TimeControl "40/4500+30:900+30"]

1. e4 {[%emt 0:00:00]} e5 {[%emt 0:00:06]} 2. Nf3 {[%emt 0:00:00]} Nc6 {[%emt 0:00:05]} 3. Bc4 {[%emt 0:00:00]} Bc5 {[%emt 0:00:05]} 4. c3 {[%emt 0:00:00]} Nf6 {[%emt 0:00:06]} 5. d3 {[%emt 0:00:00]} d6 {[%emt 0:00:06]} 6. Bb3 {[%emt 0:00:00]} a6 {[%emt 0:00:06]} 7. Nbd2 {[%emt 0:00:00]} Ba7 {[%emt 0:00:09]} 8. h3 {[%emt 0:00:03]} h6 {[%emt 0:00:07] C54: Italienische Partie (Hauptvariante)} 9. Nf1 {[%emt 0:00:05]} Nh5 {[%emt 0:00:38] LiveBook: 6 Games} (9... d5 10. Qe2 Be6 11. Ng3 O-O 12. O-O Re8 13. Re1 Qe7 14. Nh4 Rad8 15. Nhf5 Qf8 16. Qf3 dxe4 17. Nxh6+ gxh6 18. Qxf6 Bxb3 19. Bxh6 {0-1 (64) Erenburg,S (2564)-Van Foreest,J (2629) chess.com INT 2018}) 10. Be3 $146 {[%emt 0:03:23]} ({Vorgänger:} 10. g4 Nf4 11. Ng3 g5 12. Bxf4 gxf4 13. Nf5 Bxf5 14. gxf5 Qf6 {½-½ (14) Stachanczyk,J (2192)-Carnicelli,V (2307) Cutro 2018}) 10... Bxe3 {[%emt 0:01:57]} 11. fxe3 {[%emt 0:00:24]} O-O {[%emt 0:03:18]} 12. Bc2 {[%emt 0:01:17]} Qe7 {[%emt 0:05:42]} 13. Qe2 {[%emt 0:01:33]} b5 {[%emt 0:01:38]} 14. g4 {[%emt 0:06:18]} Nf6 {[%emt 0:00:10]} 15. Ng3 {[%emt 0:00:04]} g6 {[%emt 0:01:49]} 16. O-O-O {[%emt 0:01:03]} Nh7 {[%emt 0:03:10]} 17. Rdg1 {[%emt 0:02:19]} b4 {[%emt 0:02:28]} 18. c4 {[%emt 0:00:30]} a5 {[%emt 0:06:39]} 19. Bb1 {[%emt 0:03:11]} a4 {[%emt 0:04:17]} 20. Qg2 {[%emt 0:01:46]} Qf6 {[%emt 0:03:09]} 21. Rf1 {[%emt 0:00:54]} Qg7 {[%emt 0:00:32]} 22. Nh4 {[%emt 0:01:59]} Ne7 {[%emt 0:02:16]} 23. Qf2 {[%emt 0:01:04]} c6 {[%emt 0:02:55]} 24. Rhg1 {[%emt 0:03:41]} f6 {[%emt 0:02:48]} 25. Nf3 {[%emt 0:02:46]} d5 {[%emt 0:02:44]} 26. Nf5 {[%emt 0:05:09]} Bxf5 {[%emt 0:07:58]} 27. gxf5 {[%emt 0:00:26]} g5 {[%emt 0:00:52]} 28. h4 {[%emt 0:00:24]} Kf7 {[%emt 0:07:34]} 29. hxg5 {[%emt 0:00:36]} hxg5 {[%emt 0:03:12]} 30. Rh1 {[%emt 0:01:19]} dxe4 {[%emt 0:01:50]} 31. dxe4 {[%emt 0:00:16]} Rh8 {[%emt 0:00:09]} 32. Qh2 {[%emt 0:00:22]} Kg8 {[%emt 0:02:24]} 33. Rd1 {[%emt 0:00:43]} Nf8 $16 {[%emt 0:02:02]} 34. Qg3 {[%emt 0:01:35]} Rxh1 {[%emt 0:00:10]} 35. Rxh1 {[%emt 0:00:05]} Rd8 {[%emt 0:00:35]} 36. Bc2 {[%emt 0:00:41]} a3 {[%emt 0:01:08]} 37. Bb3 {[%emt 0:00:23]} axb2+ {[%emt 0:00:22]} 38. Kxb2 {[%emt 0:00:07]} c5 {[%emt 0:00:03]} 39. Bc2 {[%emt 0:00:25]} Nc8 {[%emt 0:00:31]} 40. Rd1 {[%emt 0:00:51]} Rxd1 {[%emt 0:15:14]} 41. Bxd1 {[%emt 0:15:05]} Nd6 {[%emt 0:00:09]} 42. Nd2 {[%emt 0:00:05]} Qa7 {[%emt 0:00:28]} 43. Bb3 {[%emt 0:00:37]} Qa3+ {[%emt 0:00:39]} 1/2-1/2

[Event "GER-ch Youth U12M 2018"]
[Site "Willingen"]
[Date "2018.05.23"]
[Round "6"]
[White "Eilenberg, Jonas"]
[Black "Bui, Bao Anh Le"]
[Result "1/2-1/2"]
[ECO "D43"]
[WhiteElo "1852"]
[BlackElo "1974"]
[Annotator "NA RC"]
[PlyCount "41"]
[EventDate "2018.05.19"]
[EventType "swiss"]
[EventCountry "GER"]
[SourceTitle "playchess.com"]
[Source "ChessBase"]
[SourceQuality "1"]
[TimeControl "40/4500+30:900+30"]

1. d4 {[%emt 0:00:00]} d5 {[%emt 0:00:22]} 2. c4 {[%emt 0:00:00]} e6 {[%emt 0:00:13]} 3. Nc3 {[%emt 0:00:00]} c6 {[%emt 0:00:10]} 4. Nf3 {[%emt 0:00:00]} Nf6 {[%emt 0:02:53] LiveBook: 26547 Games} 5. g3 {[%emt 0:01:00]} dxc4 {[%emt 0:00:19]} 6. Bg2 {[%emt 0:00:18]} Nbd7 {[%emt 0:00:55]} 7. O-O {[%emt 0:00:19]} Be7 {[%emt 0:00:08]} 8. e4 {[%emt 0:00:12]} O-O {[%emt 0:01:15]} 9. Qe2 {[%emt 0:07:17]} b5 {[%emt 0:10:23]} 10. Rd1 $15 {[%emt 0:07:28]} Qb6 {[%emt 0:15:47]} 11. Be3 {[%emt 0:04:02]} Ng4 {[%emt 0:08:51]} 12. Bf4 {[%emt 0:00:17]} e5 {[%emt 0:04:20]} 13. Be3 {[%emt 0:11:28]} exd4 {[%emt 0:08:29]} 14. Bxd4 {[%emt 0:01:39]} Bc5 {[%emt 0:01:32]} 15. h3 {[%emt 0:01:54]} Bxd4 {[%emt 0:03:19]} 16. hxg4 {[%emt 0:01:43]} Bxc3 {[%emt 0:05:35]} 17. bxc3 {[%emt 0:01:30]} Nc5 {[%emt 0:01:56]} 18. Nd4 {[%emt 0:01:52]} Rb8 {[%emt 0:09:46]} 19. Rab1 {[%emt 0:00:33]} Nd3 {[%emt 0:02:33]} 20. Bh3 {[%emt 0:03:22]} Qc5 {[%emt 0:01:26]} 21. Rxd3 {[%emt 0:02:36]} 1/2-1/2

[Event "GER-ch Youth U12M 2018"]
[Site "Willingen"]
[Date "2018.05.23"]
[Round "6"]
[White "Metzdorf, Matteo"]
[Black "Stepanov, Maximilian"]
[Result "1-0"]
[ECO "B06"]
[WhiteElo "1832"]
[BlackElo "1300"]
[Annotator "NA RC"]
[PlyCount "41"]
[EventDate "2018.05.19"]
[EventType "swiss"]
[EventCountry "GER"]
[SourceTitle "playchess.com"]
[Source "ChessBase"]
[SourceQuality "1"]
[TimeControl "40/4500+30:900+30"]

1. e4 {[%emt 0:00:00]} d6 {[%emt 0:00:11]} 2. d4 {[%emt 0:00:00]} g6 {[%emt 0:00:12]} 3. Nc3 {[%emt 0:00:00]} Bg7 {[%emt 0:00:09]} 4. Bg5 {[%emt 0:00:00]} h6 {[%emt 0:00:25]} 5. Be3 {[%emt 0:01:41]} e6 {[%emt 0:00:26]} 6. Qd2 {[%emt 0:01:07]} Nd7 {[%emt 0:01:24]} 7. O-O-O {[%emt 0:11:49]} g5 {[%emt 0:02:06]} 8. h4 {[%emt 0:08:55]} gxh4 {[%emt 0:03:49]} 9. Nf3 {[%emt 0:02:20]} b6 {[%emt 0:03:45]} 10. d5 {[%emt 0:12:48]} e5 $18 {[%emt 0:00:36]} 11. Nxh4 {[%emt 0:02:56]} Ndf6 {[%emt 0:01:04]} 12. Bb5+ {[%emt 0:01:43]} Ke7 {[%emt 0:05:20]} 13. f3 {[%emt 0:13:30]} h5 {[%emt 0:04:24]} 14. Ne2 {[%emt 0:10:03]} a6 {[%emt 0:01:55]} 15. Bc6 {[%emt 0:00:57]} Rb8 {[%emt 0:00:31]} 16. Ng3 {[%emt 0:00:38]} Nh6 {[%emt 0:00:54]} 17. Bxh6 {[%emt 0:02:11]} Bxh6 {[%emt 0:00:21]} 18. Nhf5+ {[%emt 0:00:15]} Bxf5 {[%emt 0:00:58]} 19. Nxf5+ {[%emt 0:00:09]} Kf8 {[%emt 0:00:12]} 20. Nxh6 {[%emt 0:00:10]} b5 {[%emt 0:02:29]} 21. Nf5 {[%emt 0:00:40]} 1-0

[Event "GER-ch Youth U12M 2018"]
[Site "Willingen"]
[Date "2018.05.23"]
[Round "6"]
[White "Schubert, Nikita"]
[Black "Foerster-Yialamas, Lucas"]
[Result "*"]
[ECO "D85"]
[WhiteElo "1802"]
[BlackElo "1924"]
[Annotator "NA RC"]
[PlyCount "108"]
[EventDate "2018.05.19"]
[EventType "swiss"]
[EventCountry "GER"]
[SourceTitle "playchess.com"]
[Source "ChessBase"]
[SourceQuality "1"]
[TimeControl "40/4500+30:900+30"]

1. d4 {[%emt 0:00:00]} Nf6 {[%emt 0:00:04]} 2. c4 {[%emt 0:00:00]} g6 {[%emt 0:00:03]} 3. Nc3 {[%emt 0:00:00]} d5 {[%emt 0:00:03]} 4. cxd5 {[%emt 0:00:20]} Nxd5 $14 {[%emt 0:00:01] LiveBook: 13939 Games} 5. g3 {[%emt 0:00:39]} Bg7 {[%emt 0:00:32]} 6. Bg2 {[%emt 0:00:17]} Nxc3 {[%emt 0:00:08]} 7. bxc3 {[%emt 0:00:07]} c5 {[%emt 0:00:51]} 8. e3 {[%emt 0:00:33]} O-O {[%emt 0:00:22]} 9. Ne2 {[%emt 0:00:19]} cxd4 {[%emt 0:00:22]} 10. cxd4 {[%emt 0:01:01]} Nc6 {[%emt 0:02:56]} 11. O-O {[%emt 0:00:38]} Qc7 {[%emt 0:04:27]} 12. Ba3 {[%emt 0:05:39]} Rd8 {[%emt 0:05:19]} 13. Rc1 {[%emt 0:04:07]} Be6 {[%emt 0:09:45]} 14. Qc2 {[%emt 0:21:25]} Qa5 {[%emt 0:02:14]} 15. Qb2 {[%emt 0:01:35]} Bd5 {[%emt 0:09:56]} 16. Bxd5 {[%emt 0:06:00]} Qxd5 {[%emt 0:00:14]} 17. Nc3 {[%emt 0:10:29]} Qf3 {[%emt 0:01:37]} 18. Rfd1 {[%emt 0:06:07]} e6 {[%emt 0:03:44]} 19. Qe2 {[%emt 0:01:20]} Qf5 {[%emt 0:01:30]} 20. Qc2 {[%emt 0:04:56]} Qa5 {[%emt 0:01:03]} 21. Qb3 {[%emt 0:00:55]} Rab8 {[%emt 0:01:27]} 22. Qa4 {[%emt 0:02:35]} Qh5 {[%emt 0:00:42]} 23. Qc4 {[%emt 0:00:51]} Rbc8 {[%emt 0:02:15]} 24. Qb5 {[%emt 0:01:33]} Qf3 {[%emt 0:00:39]} 25. Qd3 {[%emt 0:02:02]} Ne5 {[%emt 0:01:22]} 26. Qf1 {[%emt 0:02:38]} Nc4 {[%emt 0:00:34]} 27. Nb1 {[%emt 0:01:10]} Nxa3 {[%emt 0:04:42]} 28. Nxa3 {[%emt 0:00:17]} Bh6 {[%emt 0:00:35]} 29. Nc4 {[%emt 0:01:22]} b5 {[%emt 0:01:21]} 30. Ne5 {[%emt 0:00:44]} Qe4 {[%emt 0:01:27]} 31. Rxc8 {[%emt 0:02:30]} Rxc8 {[%emt 0:00:09]} 32. Qxb5 {[%emt 0:00:33]} Qc2 {[%emt 0:04:25]} 33. Qb3 {[%emt 0:01:56]} Qe2 {[%emt 0:00:30]} 34. Rf1 {[%emt 0:00:24]} Rf8 {[%emt 0:03:34]} 35. a4 {[%emt 0:02:06]} Bg7 {[%emt 0:01:34]} 36. Qd3 {[%emt 0:01:13]} Qa2 {[%emt 0:00:28]} 37. Qc4 {[%emt 0:00:55]} Qa3 {[%emt 0:01:01]} 38. Nd7 {[%emt 0:01:27]} Rd8 {[%emt 0:00:22]} 39. Nc5 {[%emt 0:00:38]} e5 {[%emt 0:01:23]} 40. Rd1 {[%emt 0:01:04]} exd4 {[%emt 0:15:30]} 41. exd4 {[%emt 0:15:01]} Rxd4 {[%emt 0:00:45]} 42. Rxd4 {[%emt 0:02:09]} Qa1+ {[%emt 0:00:05]} 43. Kg2 {[%emt 0:00:44]} Qxd4 {[%emt 0:00:03]} 44. Qxd4 {[%emt 0:00:00]} Bxd4 {[%emt 0:00:00]} 45. Nb3 {[%emt 0:00:00]} Bf6 {[%emt 0:00:00]} 46. Kf3 {[%emt 0:00:00]} Kf8 {[%emt 0:00:00]} 47. Ke4 {[%emt 0:00:00]} Ke7 {[%emt 0:00:00]} 48. Kd5 {[%emt 0:00:00]} Kd7 {[%emt 0:00:00]} 49. Kc5 {[%emt 0:00:00]} Kc7 {[%emt 0:00:00]} 50. Kb5 {[%emt 0:00:00]} Bc3 {[%emt 0:00:00]} 51. Ka6 {[%emt 0:00:00]} Be1 {[%emt 0:00:00]} 52. f3 {[%emt 0:00:00]} Bf2 {[%emt 0:00:00]} 53. Nd2 {[%emt 0:00:00]} f5 {[%emt 0:00:00]} 54. g4 {[%emt 0:00:00]} h5 {[%emt 0:00:00]} *

[Event "GER-ch Youth U12M 2018"]
[Site "Willingen"]
[Date "2018.05.23"]
[Round "6"]
[White "Lutz, Adam"]
[Black "Hommer, Jeremy"]
[Result "1/2-1/2"]
[ECO "C11"]
[WhiteElo "1761"]
[BlackElo "1897"]
[Annotator "NA RC"]
[PlyCount "35"]
[EventDate "2018.05.19"]
[EventType "swiss"]
[EventCountry "GER"]
[SourceTitle "playchess.com"]
[Source "ChessBase"]
[SourceQuality "1"]
[TimeControl "40/4500+30:900+30"]

1. e4 {[%emt 0:00:00]} e6 {[%emt 0:00:09]} 2. d4 {[%emt 0:01:29]} d5 {[%emt 0:00:02]} 3. Nc3 {[%emt 0:05:35]} Nf6 {[%emt 0:00:04]} 4. e5 {[%emt 0:00:22]} Nfd7 {[%emt 0:00:01]} 5. Nf3 {[%emt 0:01:02]} c5 {[%emt 0:00:12]} 6. dxc5 {[%emt 0:01:21]} Nc6 {[%emt 0:00:10]} 7. Bf4 {[%emt 0:00:08]} Bxc5 {[%emt 0:00:07]} 8. Bd3 {[%emt 0:00:18]} f6 {[%emt 0:00:19]} 9. exf6 {[%emt 0:01:16]} Nxf6 {[%emt 0:00:51]} 10. O-O {[%emt 0:00:26]} O-O {[%emt 0:00:08]} 11. Bg3 {[%emt 0:03:21]} a6 {[%emt 0:02:52]} 12. a3 {[%emt 0:02:03]} Bd7 {[%emt 0:06:09]} 13. Re1 {[%emt 0:02:29]} Qe7 {[%emt 0:09:48]} 14. Bh4 {[%emt 0:02:49]} Qd6 {[%emt 0:14:49]} 15. Bg3 {[%emt 0:01:39]} Qe7 {[%emt 0:00:13]} 16. Bh4 {[%emt 0:00:07]} Qd6 {[%emt 0:00:42]} 17. Bg3 {[%emt 0:00:09]} Qe7 {[%emt 0:00:18]} 18. Bh4 {[%emt 0:00:38]} 1/2-1/2

[Event "GER-ch Youth U12M 2018"]
[Site "Willingen"]
[Date "2018.05.23"]
[Round "6"]
[White "Garner, Isaac"]
[Black "Neuber, Pascal"]
[Result "1-0"]
[ECO "B41"]
[WhiteElo "1751"]
[BlackElo "1782"]
[Annotator "NA RC"]
[PlyCount "67"]
[EventDate "2018.05.19"]
[EventType "swiss"]
[EventCountry "GER"]
[SourceTitle "playchess.com"]
[Source "ChessBase"]
[SourceQuality "1"]
[TimeControl "40/4500+30:900+30"]

1. e4 {[%emt 0:00:00]} c5 {[%emt 0:00:38]} 2. Nf3 {[%emt 0:00:00]} e6 {[%emt 0:00:04]} 3. d4 {[%emt 0:00:00]} cxd4 {[%emt 0:00:03]} 4. Nxd4 {[%emt 0:00:08]} a6 {[%emt 0:00:04]} 5. c4 {[%emt 0:05:15]} Nf6 {[%emt 0:02:25]} 6. Nc3 {[%emt 0:00:41]} Qc7 {[%emt 0:01:37]} 7. a3 {[%emt 0:12:10]} Be7 {[%emt 0:04:41]} 8. Be3 {[%emt 0:03:59]} O-O {[%emt 0:07:18]} 9. Be2 {[%emt 0:03:28]} d6 {[%emt 0:02:15]} 10. O-O {[%emt 0:03:45]} Nc6 {[%emt 0:02:13]} 11. Rc1 {[%emt 0:02:23]} Ne5 {[%emt 0:10:39]} 12. f4 {[%emt 0:11:39]} Ng6 {[%emt 0:00:27]} 13. Qd3 {[%emt 0:01:13]} Rd8 {[%emt 0:08:01]} 14. g3 {[%emt 0:07:37]} Qb8 {[%emt 0:05:54]} 15. Bf3 {[%emt 0:01:53]} Bd7 {[%emt 0:08:00]} 16. b4 {[%emt 0:06:05]} Qc7 {[%emt 0:08:15]} 17. Rfd1 {[%emt 0:02:40]} Rac8 {[%emt 0:00:54]} 18. Nb1 {[%emt 0:00:58]} Ba4 {[%emt 0:01:43]} 19. Re1 {[%emt 0:00:57]} Be8 {[%emt 0:03:56]} 20. Re2 {[%emt 0:05:13]} Qb8 {[%emt 0:01:22]} 21. Rec2 {[%emt 0:00:42]} d5 {[%emt 0:02:18]} 22. cxd5 {[%emt 0:02:24]} Rxc2 {[%emt 0:00:17]} 23. Rxc2 {[%emt 0:00:34]} exd5 {[%emt 0:00:14]} 24. e5 {[%emt 0:00:30]} Nd7 {[%emt 0:02:56]} 25. Nc3 {[%emt 0:02:03]} Nb6 {[%emt 0:04:05]} 26. Nf5 {[%emt 0:03:52]} Nc8 {[%emt 0:02:44]} 27. Nxd5 {[%emt 0:02:41]} Ba4 {[%emt 0:00:42]} 28. Rxc8 {[%emt 0:00:43]} Rxc8 {[%emt 0:00:15]} 29. Ndxe7+ {[%emt 0:00:09]} Kh8 {[%emt 0:01:31]} 30. Nxc8 {[%emt 0:00:19]} Qxc8 {[%emt 0:00:00]} 31. Bxb7 {[%emt 0:00:36]} Qc7 {[%emt 0:01:40]} 32. Qd6 {[%emt 0:00:50]} Qxd6 {[%emt 0:00:46]} 33. Nxd6 {[%emt 0:00:07]} Kg8 {[%emt 0:00:08]} 34. Bxa6 {[%emt 0:00:07]} 1-0

[Event "GER-ch Youth U12M 2018"]
[Site "Willingen"]
[Date "2018.05.23"]
[Round "6"]
[White "Hagenbeck-Hübert, Ben"]
[Black "Hecht, Jonas Christian"]
[Result "1/2-1/2"]
[ECO "B23"]
[WhiteElo "1749"]
[BlackElo "1713"]
[Annotator "NA RC"]
[PlyCount "104"]
[EventDate "2018.05.19"]
[EventType "swiss"]
[EventCountry "GER"]
[SourceTitle "playchess.com"]
[Source "ChessBase"]
[SourceQuality "1"]
[TimeControl "40/4500+30:900+30"]

1. e4 {[%emt 0:00:00]} c5 {[%emt 0:00:07]} 2. Nc3 {[%emt 0:00:00]} Nc6 {[%emt 0:00:12]} 3. f4 {[%emt 0:00:19]} e6 {[%emt 0:00:53]} 4. Nf3 {[%emt 0:01:24]} a6 {[%emt 0:01:13]} 5. g3 {[%emt 0:05:43]} Nf6 {[%emt 0:01:04]} 6. Bg2 {[%emt 0:01:35]} d5 {[%emt 0:00:49]} 7. d3 {[%emt 0:05:34]} Be7 {[%emt 0:00:31]} 8. O-O {[%emt 0:01:27]} O-O {[%emt 0:01:40]} 9. h3 {[%emt 0:03:57]} dxe4 {[%emt 0:09:04]} 10. dxe4 {[%emt 0:01:13]} Qc7 {[%emt 0:01:26]} 11. Be3 {[%emt 0:06:35]} b5 {[%emt 0:08:14]} 12. e5 {[%emt 0:02:09]} Rd8 {[%emt 0:05:49]} 13. Qe1 {[%emt 0:02:19]} Nd5 {[%emt 0:00:56]} 14. Nxd5 {[%emt 0:08:22]} exd5 {[%emt 0:07:26]} 15. c3 {[%emt 0:01:38]} Bb7 {[%emt 0:04:11]} 16. Rd1 {[%emt 0:03:33]} Rac8 {[%emt 0:09:05]} 17. h4 {[%emt 0:09:48]} Ra8 {[%emt 0:05:43]} 18. Bh3 {[%emt 0:02:10]} Bc8 {[%emt 0:00:45]} 19. Bxc8 {[%emt 0:04:04]} Raxc8 {[%emt 0:00:41]} 20. Kh2 {[%emt 0:00:38]} Qd7 {[%emt 0:08:33]} 21. Qf2 {[%emt 0:03:36]} Na5 {[%emt 0:01:43]} 22. b3 {[%emt 0:01:01]} Nb7 {[%emt 0:00:18]} 23. Rg1 {[%emt 0:01:41]} h5 {[%emt 0:04:47]} 24. Qg2 {[%emt 0:02:52]} Rc6 {[%emt 0:03:14]} 25. Qh3 {[%emt 0:06:41]} Qxh3+ {[%emt 0:00:23]} 26. Kxh3 {[%emt 0:00:05]} Kh8 {[%emt 0:02:27]} 27. Rd2 {[%emt 0:00:42]} Rc7 {[%emt 0:00:27]} 28. Rgd1 {[%emt 0:00:14]} Rcd7 {[%emt 0:00:12]} 29. e6 {[%emt 0:00:50]} fxe6 {[%emt 0:01:38]} 30. Ne5 {[%emt 0:00:08]} Kg8 {[%emt 0:00:55]} 31. Nxd7 {[%emt 0:00:14]} Rxd7 {[%emt 0:00:01]} 32. f5 {[%emt 0:00:48]} Kf7 {[%emt 0:00:38]} 33. fxe6+ {[%emt 0:00:41]} Kxe6 {[%emt 0:00:07]} 34. Bf4 {[%emt 0:00:14]} Bf6 {[%emt 0:00:18]} 35. Re2+ {[%emt 0:01:35]} Kf7 {[%emt 0:00:26]} 36. Be5 {[%emt 0:00:41]} Nd8 {[%emt 0:01:12]} 37. Bxf6 {[%emt 0:00:50]} gxf6 {[%emt 0:00:01]} 38. g4 {[%emt 0:00:50]} Ne6 {[%emt 0:00:39]} 39. Kg3 {[%emt 0:00:48]} hxg4 {[%emt 0:00:12]} 40. Kxg4 {[%emt 0:00:05]} d4 {[%emt 0:15:49]} 41. Kf5 {[%emt 0:17:06]} Rd5+ {[%emt 0:01:33]} 42. Kg4 {[%emt 0:02:16]} f5+ {[%emt 0:00:49]} 43. Kf3 {[%emt 0:00:00]} d3 {[%emt 0:00:00]} 44. Re3 {[%emt 0:00:00]} c4 {[%emt 0:00:00]} 45. Ree1 {[%emt 0:00:00]} Nc5 {[%emt 0:00:00]} 46. Re3 {[%emt 0:00:00]} Ne4 {[%emt 0:00:00]} 47. bxc4 {[%emt 0:00:00]} bxc4 {[%emt 0:00:00]} 48. Rxe4 {[%emt 0:00:00]} fxe4+ {[%emt 0:00:00]} 49. Kxe4 {[%emt 0:00:00]} Ra5 {[%emt 0:00:00]} 50. Rd2 {[%emt 0:00:00]} Kg6 {[%emt 0:00:00]} 51. Kd4 {[%emt 0:00:00]} Ra4 {[%emt 0:00:00]} 52. Kc5 {[%emt 0:00:00]} Kh5 1/2-1/2

[Event "GER-ch Youth U12M 2018"]
[Site "Willingen"]
[Date "2018.05.23"]
[Round "6"]
[White "Rössel, Gino"]
[Black "Halabi, Ibrahim"]
[Result "*"]
[ECO "B52"]
[WhiteElo "1705"]
[BlackElo "1701"]
[Annotator "NA RC"]
[PlyCount "92"]
[EventDate "2018.05.19"]
[EventType "swiss"]
[EventCountry "GER"]
[SourceTitle "playchess.com"]
[Source "ChessBase"]
[SourceQuality "1"]
[TimeControl "40/4500+30:900+30"]

1. e4 {[%emt 0:00:00]} c5 {[%emt 0:00:04]} 2. Nf3 {[%emt 0:00:00]} d6 {[%emt 0:00:06]} 3. Bb5+ {[%emt 0:00:02]} Bd7 {[%emt 0:00:20]} 4. Bxd7+ {[%emt 0:00:08]} Qxd7 {[%emt 0:00:22]} 5. O-O {[%emt 0:00:31]} e6 {[%emt 0:00:16]} 6. c3 {[%emt 0:00:43]} Nf6 {[%emt 0:01:43]} 7. Re1 {[%emt 0:07:15]} Nc6 {[%emt 0:09:09]} 8. d4 {[%emt 0:06:17]} d5 {[%emt 0:07:48]} 9. exd5 {[%emt 0:02:43]} Qxd5 {[%emt 0:04:35]} 10. b3 {[%emt 0:09:49]} cxd4 {[%emt 0:05:34]} 11. cxd4 {[%emt 0:05:20]} Bb4 {[%emt 0:01:50]} 12. Bd2 {[%emt 0:03:56]} Bxd2 {[%emt 0:02:24]} 13. Qxd2 {[%emt 0:00:42]} O-O {[%emt 0:00:56]} 14. Nc3 {[%emt 0:05:18]} Qd7 {[%emt 0:01:36]} 15. Rad1 {[%emt 0:01:55]} Rad8 {[%emt 0:03:35]} 16. Ne4 {[%emt 0:04:51]} Nxe4 {[%emt 0:12:03]} 17. Rxe4 {[%emt 0:00:18]} Ne7 {[%emt 0:00:32]} 18. Rg4 {[%emt 0:04:21]} Ng6 {[%emt 0:00:42]} 19. h4 {[%emt 0:06:46]} e5 {[%emt 0:07:28]} 20. Rg3 {[%emt 0:00:20]} e4 {[%emt 0:01:19]} 21. Ng5 {[%emt 0:02:11]} Nxh4 {[%emt 0:00:51]} 22. Nxe4 {[%emt 0:00:46]} Ng6 {[%emt 0:01:12]} 23. Ng5 {[%emt 0:03:40]} Qf5 {[%emt 0:02:32]} 24. Rf3 {[%emt 0:02:19]} Qg4 {[%emt 0:00:44]} 25. Nh3 {[%emt 0:01:00]} Rd5 {[%emt 0:03:32]} 26. Rg3 {[%emt 0:01:19]} Qe4 {[%emt 0:01:25]} 27. Ng5 {[%emt 0:00:44]} Qf4 {[%emt 0:00:41]} 28. Qxf4 {[%emt 0:03:06]} Nxf4 {[%emt 0:00:06]} 29. Rg4 {[%emt 0:01:56]} Rfd8 {[%emt 0:02:04]} 30. Rxf4 {[%emt 0:02:21]} Rxg5 {[%emt 0:00:06]} 31. Rc1 {[%emt 0:01:05]} f6 {[%emt 0:04:28]} 32. Rc7 {[%emt 0:00:24]} Ra5 {[%emt 0:03:24]} 33. a4 {[%emt 0:02:04]} b5 {[%emt 0:00:11]} 34. axb5 {[%emt 0:02:25]} Rxb5 {[%emt 0:00:05]} 35. Rxa7 {[%emt 0:00:16]} Rxb3 {[%emt 0:00:05]} 36. Re4 {[%emt 0:01:01]} Rb5 {[%emt 0:04:54]} 37. Ree7 {[%emt 0:02:19]} Rg5 {[%emt 0:00:36]} 38. d5 {[%emt 0:01:29]} Kf8 {[%emt 0:00:36]} 39. Rec7 {[%emt 0:01:36]} h6 {[%emt 0:04:13]} 40. d6 {[%emt 0:01:06]} f5 {[%emt 0:15:45]} 41. Rf7+ {[%emt 0:15:37]} Kg8 {[%emt 0:00:32]} 42. Rfd7 {[%emt 0:00:00]} Rxd7 {[%emt 0:00:00]} 43. Rxd7 {[%emt 0:00:00]} Rg6 {[%emt 0:00:00]} 44. Rd8+ {[%emt 0:00:00]} Kf7 {[%emt 0:00:00]} 45. d7 {[%emt 0:00:00]} Ke7 {[%emt 0:00:00]} 46. Rf8 {[%emt 0:00:00]} Kxd7 {[%emt 0:00:00]} *